[Event "Titled Tuesday Blitz January 03 Early 2023"]
[White "Lopez Del Alamo, Antonio"]
[Black "Andreev, Eduard"]
[WhiteFideId "2227339"]
[BlackFideId "14103400"]
[WhiteElo "2280"]
[BlackElo "2413"]
[Result "1-0"]
[Round "02"]
[TimeControl "180+2"]
[Date "2023.01.03"]
[WhiteClock "0:00:13"]
[BlackClock "0:00:20"]

1. e4 {[%clk 0:03:00]}  c5 {[%clk 0:02:59]} 2. Nf3 {[%clk 0:03:00]}  d6 {[%clk 0:02:59]} 3. d4 {[%clk 0:03:00]}  cxd4 {[%clk 0:03:00]} 4. Nxd4 {[%clk 0:03:00]}  Nf6 {[%clk 0:03:00]} 5. Nc3 {[%clk 0:03:01]}  Nc6 {[%clk 0:03:00]} 6. Bg5 {[%clk 0:02:59]}  e6 {[%clk 0:03:00]} 7. Bb5 {[%clk 0:02:59]}  Bd7 {[%clk 0:02:58]} 8. Bxc6 {[%clk 0:02:57]}  bxc6 {[%clk 0:02:59]} 9. Qf3 {[%clk 0:02:57]}  h6 {[%clk 0:02:48]} 10. Bh4 {[%clk 0:02:51]}  Be7 {[%clk 0:02:41]} 11. e5 {[%clk 0:02:46]}  Nd5 {[%clk 0:02:19]} 12. Bxe7 {[%clk 0:02:31]}  Qxe7 {[%clk 0:02:20]} 13. exd6 {[%clk 0:02:30]}  Qxd6 {[%clk 0:02:18]} 14. Rd1 {[%clk 0:02:26]}  O-O {[%clk 0:02:14]} 15. O-O {[%clk 0:02:25]}  Rab8 {[%clk 0:02:01]} 16. b3 {[%clk 0:02:18]}  c5 {[%clk 0:01:44]} 17. Nf5 {[%clk 0:02:03]}  exf5 {[%clk 0:01:17]} 18. Nxd5 {[%clk 0:01:54]}  Rfd8 {[%clk 0:00:58]} 19. c4 {[%clk 0:01:33]}  Bc6 {[%clk 0:00:51]} 20. Qxf5 {[%clk 0:01:30]}  a5 {[%clk 0:00:48]} 21. Rd3 {[%clk 0:01:19]}  a4 {[%clk 0:00:42]} 22. Rfd1 {[%clk 0:01:18]}  Bxd5 {[%clk 0:00:28]} 23. Rxd5 {[%clk 0:01:14]}  Qe7 {[%clk 0:00:27]} 24. g3 {[%clk 0:01:01]}  axb3 {[%clk 0:00:24]} 25. axb3 {[%clk 0:01:02]}  Rxd5 {[%clk 0:00:23]} 26. Rxd5 {[%clk 0:01:02]}  Rxb3 {[%clk 0:00:19]} 27. Rxc5 {[%clk 0:01:00]}  g6 {[%clk 0:00:19]} 28. Qd5 {[%clk 0:00:44]}  Qe1+ {[%clk 0:00:15]} 29. Kg2 {[%clk 0:00:44]}  Qe7 {[%clk 0:00:11]} 30. Rc8+ {[%clk 0:00:35]}  Kh7 {[%clk 0:00:11]} 31. c5 {[%clk 0:00:34]}  Ra3 {[%clk 0:00:06]} 32. Rd8 {[%clk 0:00:31]}  Ra4 {[%clk 0:00:04]} 33. Rd7 {[%clk 0:00:29]}  Qe4+ {[%clk 0:00:05]} 34. Qxe4 {[%clk 0:00:29]}  Rxe4 {[%clk 0:00:06]} 35. Rxf7+ {[%clk 0:00:29]}  Kg8 {[%clk 0:00:06]} 36. Rc7 {[%clk 0:00:28]}  Rc4 {[%clk 0:00:07]} 37. h4 {[%clk 0:00:26]}  h5 {[%clk 0:00:07]} 38. c6 {[%clk 0:00:26]}  Kf8 {[%clk 0:00:07]} 39. Rc8+ {[%clk 0:00:25]}  Kg7 {[%clk 0:00:07]} 40. c7 {[%clk 0:00:25]}  Rc5 {[%clk 0:00:07]} 41. f3 {[%clk 0:00:17]}  Rc4 {[%clk 0:00:07]} 42. Kh3 {[%clk 0:00:16]}  Rc3 {[%clk 0:00:07]} 43. f4 {[%clk 0:00:16]}  Rc4 {[%clk 0:00:07]} 44. g4 {[%clk 0:00:15]}  Rc3+ {[%clk 0:00:06]} 45. Kg2 {[%clk 0:00:14]}  hxg4 {[%clk 0:00:07]} 46. h5 {[%clk 0:00:15]}  gxh5 {[%clk 0:00:07]} 47. f5 {[%clk 0:00:15]}  h4 {[%clk 0:00:05]} 48. f6+ {[%clk 0:00:15]}  Kf7 {[%clk 0:00:05]} 49. Rh8 {[%clk 0:00:16]}  h3+ {[%clk 0:00:05]} 50. Kg1 {[%clk 0:00:15]}  Rc1+ {[%clk 0:00:05]} 51. Kh2 {[%clk 0:00:15]}  Rc2+ {[%clk 0:00:04]} 52. Kg3 {[%clk 0:00:15]}  Kxf6 {[%clk 0:00:04]} 53. c8=Q {[%clk 0:00:14]}  Rxc8 {[%clk 0:00:04]} 54. Rxc8 {[%clk 0:00:15]}  Kf5 {[%clk 0:00:04]} 55. Rc4 {[%clk 0:00:14]}  h2 {[%clk 0:00:05]} 56. Kxh2 {[%clk 0:00:13]}  Kg5 {[%clk 0:00:05]} 57. Kg2 {[%clk 0:00:13]}  Kf5 {[%clk 0:00:06]} 58. Kg3 {[%clk 0:00:14]}  Kg5 {[%clk 0:00:07]} 59. Rc5+ {[%clk 0:00:14]}  Kf6 {[%clk 0:00:07]} 60. Kxg4 {[%clk 0:00:15]}  Ke6 {[%clk 0:00:08]} 61. Kf4 {[%clk 0:00:14]}  Kd6 {[%clk 0:00:09]} 62. Rh5 {[%clk 0:00:14]}  Ke6 {[%clk 0:00:10]} 63. Ra5 {[%clk 0:00:13]}  Kd6 {[%clk 0:00:11]} 64. Ke4 {[%clk 0:00:13]}  Ke6 {[%clk 0:00:11]} 65. Rh5 {[%clk 0:00:12]}  Kf6 {[%clk 0:00:12]} 66. Ra5 {[%clk 0:00:12]}  Kg6 {[%clk 0:00:12]} 67. Kf4 {[%clk 0:00:12]}  Kf6 {[%clk 0:00:13]} 68. Ra6+ {[%clk 0:00:12]}  Ke7 {[%clk 0:00:13]} 69. Ke5 {[%clk 0:00:12]}  Kd7 {[%clk 0:00:14]} 70. Rh6 {[%clk 0:00:12]}  Kc7 {[%clk 0:00:14]} 71. Kd5 {[%clk 0:00:12]}  Kb7 {[%clk 0:00:14]} 72. Kc5 {[%clk 0:00:13]}  Ka7 {[%clk 0:00:15]} 73. Kb5 {[%clk 0:00:13]}  Kb7 {[%clk 0:00:16]} 74. Rh7+ {[%clk 0:00:13]}  Kc8 {[%clk 0:00:16]} 75. Kc6 {[%clk 0:00:13]}  Kd8 {[%clk 0:00:17]} 76. Ra7 {[%clk 0:00:13]}  Ke8 {[%clk 0:00:18]} 77. Kd6 {[%clk 0:00:13]}  Kf8 {[%clk 0:00:19]} 78. Ke6 {[%clk 0:00:13]}  Ke8 {[%clk 0:00:20]} 79. Ra8# {[%clk 0:00:13]} 1-0


[Site "https://www.chess.com"]

[Event "Titled Tuesday Blitz January 03 Early 2023"]
[White "Quinones Garcia, Santiago"]
[Black "Martin, Lewis"]
[WhiteFideId "4408497"]
[BlackFideId "410551"]
[WhiteElo "2248"]
[BlackElo "2135"]
[Result "0-1"]
[Round "02"]
[TimeControl "180+2"]
[Date "2023.01.03"]
[WhiteClock "0:00:09"]
[BlackClock "0:00:13"]

1. d4 {[%clk 0:02:57]}  d5 {[%clk 0:03:00]} 2. c4 {[%clk 0:02:57]}  e6 {[%clk 0:02:59]} 3. Nc3 {[%clk 0:02:56]}  Nf6 {[%clk 0:02:58]} 4. Bg5 {[%clk 0:02:57]}  Be7 {[%clk 0:02:50]} 5. cxd5 {[%clk 0:02:56]}  exd5 {[%clk 0:02:49]} 6. e3 {[%clk 0:02:56]}  O-O {[%clk 0:02:43]} 7. Bd3 {[%clk 0:02:55]}  Nbd7 {[%clk 0:02:42]} 8. Nf3 {[%clk 0:02:55]}  h6 {[%clk 0:02:40]} 9. Bh4 {[%clk 0:02:54]}  c5 {[%clk 0:02:35]} 10. dxc5 {[%clk 0:02:51]}  Nxc5 {[%clk 0:02:26]} 11. Be2 {[%clk 0:02:50]}  Be6 {[%clk 0:02:22]} 12. O-O {[%clk 0:02:49]}  Nce4 {[%clk 0:02:14]} 13. Qd4 {[%clk 0:02:42]}  Nxc3 {[%clk 0:02:03]} 14. Qxc3 {[%clk 0:02:25]}  Rc8 {[%clk 0:02:00]} 15. Qd3 {[%clk 0:02:22]}  Qb6 {[%clk 0:01:51]} 16. b3 {[%clk 0:02:17]}  Rfe8 {[%clk 0:01:38]} 17. Rfd1 {[%clk 0:02:16]}  Ne4 {[%clk 0:01:35]} 18. Bxe7 {[%clk 0:02:14]}  Rxe7 {[%clk 0:01:36]} 19. Bf1 {[%clk 0:02:03]}  Rec7 {[%clk 0:01:27]} 20. Nd4 {[%clk 0:02:00]}  Bd7 {[%clk 0:01:02]} 21. g3 {[%clk 0:01:51]}  Qf6 {[%clk 0:00:59]} 22. Qe2 {[%clk 0:01:46]}  h5 {[%clk 0:00:47]} 23. Qf3 {[%clk 0:01:39]}  Qxf3 {[%clk 0:00:44]} 24. Nxf3 {[%clk 0:01:39]}  Bg4 {[%clk 0:00:44]} 25. Bg2 {[%clk 0:01:36]}  Rc2 {[%clk 0:00:44]} 26. Rxd5 {[%clk 0:01:20]}  Rxf2 {[%clk 0:00:40]} 27. Rd4 {[%clk 0:01:14]}  Rcc2 {[%clk 0:00:38]} 28. Ne1 {[%clk 0:01:14]}  Rxg2+ {[%clk 0:00:19]} 29. Nxg2 {[%clk 0:01:14]}  Ng5 {[%clk 0:00:19]} 30. Rd8+ {[%clk 0:00:20]}  Kh7 {[%clk 0:00:19]} 31. h4 {[%clk 0:00:17]}  Nh3+ {[%clk 0:00:19]} 32. Kf1 {[%clk 0:00:06]}  Rf2+ {[%clk 0:00:18]} 33. Ke1 {[%clk 0:00:06]}  Rxg2 {[%clk 0:00:18]} 34. Rc1 {[%clk 0:00:04]}  Rxg3 {[%clk 0:00:17]} 35. Kd2 {[%clk 0:00:04]}  Rg2+ {[%clk 0:00:18]} 36. Kd3 {[%clk 0:00:03]}  Bf5+ {[%clk 0:00:17]} 37. Kc4 {[%clk 0:00:03]}  Rg4+ {[%clk 0:00:17]} 38. Kb5 {[%clk 0:00:03]}  Rxh4 {[%clk 0:00:17]} 39. Rc5 {[%clk 0:00:03]}  Bg6 {[%clk 0:00:17]} 40. Rc7 {[%clk 0:00:02]}  Rg4 {[%clk 0:00:17]} 41. Rcc8 {[%clk 0:00:03]}  Kh6 {[%clk 0:00:16]} 42. Rh8+ {[%clk 0:00:03]}  Kg5 {[%clk 0:00:17]} 43. Rc5+ {[%clk 0:00:03]}  f5 {[%clk 0:00:16]} 44. a4 {[%clk 0:00:04]}  Re4 {[%clk 0:00:16]} 45. a5 {[%clk 0:00:04]}  b6 {[%clk 0:00:15]} 46. axb6 {[%clk 0:00:04]}  axb6 {[%clk 0:00:16]} 47. Kxb6 {[%clk 0:00:03]}  Rxe3 {[%clk 0:00:15]} 48. b4 {[%clk 0:00:04]}  Nf4 {[%clk 0:00:14]} 49. b5 {[%clk 0:00:04]}  h4 {[%clk 0:00:14]} 50. Kc7 {[%clk 0:00:03]}  h3 {[%clk 0:00:14]} 51. b6 {[%clk 0:00:03]}  Ne6+ {[%clk 0:00:15]} 52. Kc6 {[%clk 0:00:03]}  Nxc5 {[%clk 0:00:16]} 53. Kxc5 {[%clk 0:00:04]}  Rb3 {[%clk 0:00:16]} 54. Kc6 {[%clk 0:00:03]}  Kg4 {[%clk 0:00:15]} 55. b7 {[%clk 0:00:04]}  Rxb7 {[%clk 0:00:13]} 56. Kxb7 {[%clk 0:00:04]}  f4 {[%clk 0:00:12]} 57. Kc6 {[%clk 0:00:04]}  Be4+ {[%clk 0:00:12]} 58. Kc5 {[%clk 0:00:04]}  Kg3 {[%clk 0:00:13]} 59. Kd4 {[%clk 0:00:05]}  Bg2 {[%clk 0:00:12]} 60. Kd3 {[%clk 0:00:04]}  h2 {[%clk 0:00:12]} 61. Ke2 {[%clk 0:00:05]}  h1=Q {[%clk 0:00:12]} 62. Rxh1 {[%clk 0:00:05]}  Bxh1 {[%clk 0:00:13]} 63. Kf1 {[%clk 0:00:05]}  g5 {[%clk 0:00:13]} 64. Kg1 {[%clk 0:00:06]}  Bb7 {[%clk 0:00:14]} 65. Kf1 {[%clk 0:00:06]}  g4 {[%clk 0:00:14]} 66. Kg1 {[%clk 0:00:06]}  Bc6 {[%clk 0:00:15]} 67. Kf1 {[%clk 0:00:06]}  Kh2 {[%clk 0:00:15]} 68. Ke2 {[%clk 0:00:06]}  g3 {[%clk 0:00:16]} 69. Kd3 {[%clk 0:00:06]}  g2 {[%clk 0:00:17]} 70. Kd4 {[%clk 0:00:06]}  g1=Q+ {[%clk 0:00:18]} 71. Ke5 {[%clk 0:00:06]}  Qc1 {[%clk 0:00:19]} 72. Kf5 {[%clk 0:00:06]}  Kg3 {[%clk 0:00:19]} 73. Kf6 {[%clk 0:00:07]}  Qc5 {[%clk 0:00:18]} 74. Kg7 {[%clk 0:00:07]}  Qd6 {[%clk 0:00:18]} 75. Kh8 {[%clk 0:00:08]}  Qe7 {[%clk 0:00:18]} 76. Kg8 {[%clk 0:00:08]}  Bd5+ {[%clk 0:00:17]} 77. Kh8 {[%clk 0:00:09]}  Qf8+ {[%clk 0:00:13]} 78. Kh7 {[%clk 0:00:09]}  Be4# {[%clk 0:00:13]} 0-1


[Site "https://www.chess.com"]

[Event "Titled Tuesday Blitz January 03 Early 2023"]
[White "Bobomurodova, Maftuna"]
[Black "Tran, Thanh Tu"]
[WhiteFideId "14207400"]
[BlackFideId "12401404"]
[WhiteElo "1946"]
[BlackElo "2412"]
[Result "0-1"]
[Round "02"]
[TimeControl "180+2"]
[Date "2023.01.03"]
[WhiteClock "0:00:04"]
[BlackClock "0:00:07"]

1. e4 {[%clk 0:03:00]}  Nc6 {[%clk 0:03:00]} 2. Nf3 {[%clk 0:02:57]}  d6 {[%clk 0:03:00]} 3. d4 {[%clk 0:02:57]}  Nf6 {[%clk 0:03:00]} 4. Nc3 {[%clk 0:02:55]}  g6 {[%clk 0:03:00]} 5. Be2 {[%clk 0:02:54]}  Bg7 {[%clk 0:03:01]} 6. O-O {[%clk 0:02:54]}  O-O {[%clk 0:03:01]} 7. Re1 {[%clk 0:02:45]}  e5 {[%clk 0:03:01]} 8. Bg5 {[%clk 0:02:43]}  exd4 {[%clk 0:03:00]} 9. Nxd4 {[%clk 0:02:42]}  h6 {[%clk 0:03:00]} 10. Nxc6 {[%clk 0:02:38]}  bxc6 {[%clk 0:03:00]} 11. Bf4 {[%clk 0:02:37]}  Rb8 {[%clk 0:02:54]} 12. Rb1 {[%clk 0:02:35]}  Nd7 {[%clk 0:02:50]} 13. Qd2 {[%clk 0:02:34]}  Kh7 {[%clk 0:02:49]} 14. Bd3 {[%clk 0:02:29]}  Ne5 {[%clk 0:02:36]} 15. Be3 {[%clk 0:02:27]}  c5 {[%clk 0:02:20]} 16. Bf1 {[%clk 0:02:26]}  Bb7 {[%clk 0:02:10]} 17. Nd5 {[%clk 0:02:24]}  Bc6 {[%clk 0:01:46]} 18. h3 {[%clk 0:02:22]}  Nd7 {[%clk 0:01:40]} 19. c3 {[%clk 0:02:16]}  Re8 {[%clk 0:01:38]} 20. Bf4 {[%clk 0:02:08]}  Ne5 {[%clk 0:01:31]} 21. Bg3 {[%clk 0:02:00]}  Bb5 {[%clk 0:01:03]} 22. Bxb5 {[%clk 0:01:48]}  Rxb5 {[%clk 0:01:04]} 23. f4 {[%clk 0:01:42]}  Nd7 {[%clk 0:01:03]} 24. Rbd1 {[%clk 0:01:27]}  Qb8 {[%clk 0:00:47]} 25. b3 {[%clk 0:01:27]}  c4 {[%clk 0:00:47]} 26. b4 {[%clk 0:01:22]}  a5 {[%clk 0:00:39]} 27. a3 {[%clk 0:01:21]}  axb4 {[%clk 0:00:39]} 28. axb4 {[%clk 0:01:21]}  c6 {[%clk 0:00:33]} 29. Ne3 {[%clk 0:01:21]}  Rxe4 {[%clk 0:00:32]} 30. f5 {[%clk 0:01:10]}  Be5 {[%clk 0:00:17]} 31. fxg6+ {[%clk 0:01:08]}  fxg6 {[%clk 0:00:17]} 32. Ng4 {[%clk 0:01:04]}  Rxe1+ {[%clk 0:00:14]} 33. Bxe1 {[%clk 0:01:02]}  Bg7 {[%clk 0:00:13]} 34. Qxd6 {[%clk 0:00:58]}  Qxd6 {[%clk 0:00:12]} 35. Rxd6 {[%clk 0:00:58]}  Ne5 {[%clk 0:00:11]} 36. Nxe5 {[%clk 0:00:52]}  Rxe5 {[%clk 0:00:12]} 37. Kf1 {[%clk 0:00:44]}  c5 {[%clk 0:00:12]} 38. b5 {[%clk 0:00:43]}  Re7 {[%clk 0:00:12]} 39. b6 {[%clk 0:00:42]}  Rb7 {[%clk 0:00:11]} 40. Ke2 {[%clk 0:00:38]}  g5 {[%clk 0:00:12]} 41. Ke3 {[%clk 0:00:36]}  Be5 {[%clk 0:00:12]} 42. Re6 {[%clk 0:00:35]}  Bf4+ {[%clk 0:00:12]} 43. Ke4 {[%clk 0:00:35]}  Kg7 {[%clk 0:00:12]} 44. Kd5 {[%clk 0:00:35]}  Kf7 {[%clk 0:00:11]} 45. Kc6 {[%clk 0:00:30]}  Rxb6+ {[%clk 0:00:09]} 46. Kxb6 {[%clk 0:00:30]}  Kxe6 {[%clk 0:00:10]} 47. Kxc5 {[%clk 0:00:31]}  Ke5 {[%clk 0:00:09]} 48. Kxc4 {[%clk 0:00:30]}  Ke4 {[%clk 0:00:10]} 49. Kb5 {[%clk 0:00:27]}  Ke3 {[%clk 0:00:09]} 50. c4 {[%clk 0:00:26]}  Ke2 {[%clk 0:00:10]} 51. Bb4 {[%clk 0:00:24]}  Kf2 {[%clk 0:00:10]} 52. Bf8 {[%clk 0:00:19]}  h5 {[%clk 0:00:08]} 53. g4 {[%clk 0:00:17]}  h4 {[%clk 0:00:07]} 54. c5 {[%clk 0:00:17]}  Kg2 {[%clk 0:00:07]} 55. Bd6 {[%clk 0:00:17]}  Kxh3 {[%clk 0:00:07]} 56. Bxf4 {[%clk 0:00:16]}  gxf4 {[%clk 0:00:08]} 57. c6 {[%clk 0:00:14]}  f3 {[%clk 0:00:09]} 58. c7 {[%clk 0:00:15]}  f2 {[%clk 0:00:10]} 59. c8=Q {[%clk 0:00:15]}  f1=Q+ {[%clk 0:00:11]} 60. Kb6 {[%clk 0:00:13]}  Qg1+ {[%clk 0:00:10]} 61. Kb5 {[%clk 0:00:13]}  Qxg4 {[%clk 0:00:10]} 62. Qc5 {[%clk 0:00:12]}  Kg2 {[%clk 0:00:10]} 63. Qd5+ {[%clk 0:00:11]}  Qf3 {[%clk 0:00:09]} 64. Qg5+ {[%clk 0:00:10]}  Qg3 {[%clk 0:00:10]} 65. Qd5+ {[%clk 0:00:10]}  Kg1 {[%clk 0:00:09]} 66. Qd4+ {[%clk 0:00:10]}  Qf2 {[%clk 0:00:09]} 67. Qg4+ {[%clk 0:00:10]}  Kf1 {[%clk 0:00:09]} 68. Qh3+ {[%clk 0:00:10]}  Kg1 {[%clk 0:00:08]} 69. Qg4+ {[%clk 0:00:10]}  Qg3 {[%clk 0:00:08]} 70. Qd4+ {[%clk 0:00:10]}  Kg2 {[%clk 0:00:08]} 71. Qe4+ {[%clk 0:00:09]}  Kh2 {[%clk 0:00:09]} 72. Qe2+ {[%clk 0:00:09]}  Qg2 {[%clk 0:00:09]} 73. Qe5+ {[%clk 0:00:09]}  Kh3 {[%clk 0:00:09]} 74. Qf5+ {[%clk 0:00:09]}  Qg4 {[%clk 0:00:08]} 75. Qf1+ {[%clk 0:00:08]}  Kg3 {[%clk 0:00:08]} 76. Qd3+ {[%clk 0:00:07]}  Kf4 {[%clk 0:00:07]} 77. Qd4+ {[%clk 0:00:07]}  Kg5 {[%clk 0:00:07]} 78. Qe3+ {[%clk 0:00:07]}  Qf4 {[%clk 0:00:07]} 79. Qe2 {[%clk 0:00:06]}  h3 {[%clk 0:00:06]} 80. Qe7+ {[%clk 0:00:04]}  Kg4 {[%clk 0:00:06]} 81. Qg7+ {[%clk 0:00:04]}  Qg5+ {[%clk 0:00:07]} 0-1


[Site "https://www.chess.com"]

[Event "Titled Tuesday Blitz January 03 Early 2023"]
[White "Orzech, Dominik"]
[Black "monkins"]
[WhiteFideId "1115065"]
[WhiteElo "2308"]
[BlackElo "2242"]
[Result "1-0"]
[Round "02"]
[TimeControl "180+2"]
[Date "2023.01.03"]
[WhiteClock "0:00:04"]
[BlackClock "0:00:21"]

1. d4 {[%clk 0:00:08]}  Nf6 {[%clk 0:02:57]} 2. Nf3 {[%clk 0:00:09]}  c5 {[%clk 0:02:55]} 3. c4 {[%clk 0:00:10]}  cxd4 {[%clk 0:02:55]} 4. Nxd4 {[%clk 0:00:11]}  Nc6 {[%clk 0:02:55]} 5. g3 {[%clk 0:00:11]}  g6 {[%clk 0:02:54]} 6. Bg2 {[%clk 0:00:11]}  Bg7 {[%clk 0:02:55]} 7. Nc2 {[%clk 0:00:11]}  O-O {[%clk 0:02:55]} 8. Nc3 {[%clk 0:00:11]}  d6 {[%clk 0:02:53]} 9. O-O {[%clk 0:00:12]}  Be6 {[%clk 0:02:53]} 10. b3 {[%clk 0:00:12]}  Qa5 {[%clk 0:02:50]} 11. Bb2 {[%clk 0:00:11]}  Qh5 {[%clk 0:02:50]} 12. e4 {[%clk 0:00:10]}  Bg4 {[%clk 0:02:47]} 13. f3 {[%clk 0:00:10]}  Bh3 {[%clk 0:02:47]} 14. Ne3 {[%clk 0:00:10]}  Bxg2 {[%clk 0:02:37]} 15. Kxg2 {[%clk 0:00:11]}  Rfe8 {[%clk 0:02:24]} 16. Qd2 {[%clk 0:00:08]}  Rac8 {[%clk 0:02:02]} 17. Rad1 {[%clk 0:00:08]}  a6 {[%clk 0:02:00]} 18. Ncd5 {[%clk 0:00:08]}  Nxd5 {[%clk 0:01:54]} 19. Nxd5 {[%clk 0:00:09]}  Bxb2 {[%clk 0:01:31]} 20. Qxb2 {[%clk 0:00:10]}  b5 {[%clk 0:01:31]} 21. Rc1 {[%clk 0:00:07]}  Ne5 {[%clk 0:01:29]} 22. cxb5 {[%clk 0:00:04]}  Rxc1 {[%clk 0:01:16]} 23. Rxc1 {[%clk 0:00:02]}  Nd3 {[%clk 0:01:15]} 24. Nxe7+ {[%clk 0:00:02]}  Kf8 {[%clk 0:01:10]} 25. Qh8+ {[%clk 0:00:01]}  Kxe7 {[%clk 0:01:09]} 26. Rc7+ {[%clk 0:00:01]}  Kd8 {[%clk 0:01:02]} 27. Rc8+ {[%clk 0:00:02]}  Kxc8 {[%clk 0:01:01]} 28. Qxe8+ {[%clk 0:00:03]}  Kb7 {[%clk 0:00:28]} 29. Qc6+ {[%clk 0:00:04]}  Ka7 {[%clk 0:00:21]} 30. Qxa6+ {[%clk 0:00:04]}  Kb8 {[%clk 0:00:21]} 31. Qxd6+ {[%clk 0:00:04]} 1-0


[Site "https://www.chess.com"]

[Event "Titled Tuesday Blitz January 03 Early 2023"]
[White "Bettalli, Francesco"]
[Black "De Souza, Cristiano Gomes"]
[WhiteFideId "2816453"]
[BlackFideId "2151758"]
[WhiteElo "2252"]
[BlackElo "2018"]
[Result "1-0"]
[Round "02"]
[TimeControl "180+2"]
[Date "2023.01.03"]
[WhiteClock "0:02:44"]
[BlackClock "0:02:06"]

1. d4 {[%clk 0:03:00]}  Nf6 {[%clk 0:02:48]} 2. Nc3 {[%clk 0:03:00]}  g6 {[%clk 0:02:43]} 3. e4 {[%clk 0:02:58]}  d6 {[%clk 0:02:43]} 4. Bf4 {[%clk 0:02:58]}  Bg7 {[%clk 0:02:41]} 5. Qd2 {[%clk 0:02:58]}  c6 {[%clk 0:02:40]} 6. O-O-O {[%clk 0:02:58]}  b5 {[%clk 0:02:39]} 7. f3 {[%clk 0:02:58]}  b4 {[%clk 0:02:38]} 8. Nce2 {[%clk 0:02:58]}  a5 {[%clk 0:02:37]} 9. h4 {[%clk 0:02:58]}  h5 {[%clk 0:02:35]} 10. Nh3 {[%clk 0:02:58]}  Ba6 {[%clk 0:02:34]} 11. Nf2 {[%clk 0:02:56]}  Nbd7 {[%clk 0:02:34]} 12. Kb1 {[%clk 0:02:56]}  c5 {[%clk 0:02:34]} 13. d5 {[%clk 0:02:55]}  Ne5 {[%clk 0:02:31]} 14. Bxe5 {[%clk 0:02:54]}  dxe5 {[%clk 0:02:31]} 15. g4 {[%clk 0:02:55]}  hxg4 {[%clk 0:02:31]} 16. Nxg4 {[%clk 0:02:56]}  Nh5 {[%clk 0:02:30]} 17. Nc1 {[%clk 0:02:54]}  Bxf1 {[%clk 0:02:26]} 18. Rdxf1 {[%clk 0:02:55]}  Qd7 {[%clk 0:02:26]} 19. Nd3 {[%clk 0:02:55]}  c4 {[%clk 0:02:16]} 20. Ndxe5 {[%clk 0:02:54]}  Qa4 {[%clk 0:02:15]} 21. Nxc4 {[%clk 0:02:50]}  O-O {[%clk 0:02:11]} 22. Nb6 {[%clk 0:02:50]}  Qb5 {[%clk 0:02:10]} 23. Nxa8 {[%clk 0:02:50]}  Rxa8 {[%clk 0:02:10]} 24. e5 {[%clk 0:02:49]}  a4 {[%clk 0:02:10]} 25. Rd1 {[%clk 0:02:48]}  a3 {[%clk 0:02:09]} 26. b3 {[%clk 0:02:47]}  Rc8 {[%clk 0:02:08]} 27. Rhe1 {[%clk 0:02:46]}  Rc3 {[%clk 0:02:06]} 28. Re3 {[%clk 0:02:45]}  Qc5 {[%clk 0:02:06]} 29. Rxc3 {[%clk 0:02:45]}  bxc3 {[%clk 0:02:07]} 30. Qd4 {[%clk 0:02:43]}  Qc7 {[%clk 0:02:06]} 31. d6 {[%clk 0:02:43]}  exd6 {[%clk 0:02:06]} 32. Qxd6 {[%clk 0:02:44]}  Qc8 {[%clk 0:02:05]} 33. Qd8+ {[%clk 0:02:44]}  Qxd8 {[%clk 0:02:06]} 34. Rxd8+ {[%clk 0:02:45]}  Kh7 {[%clk 0:02:06]} 35. b4 {[%clk 0:02:44]} 1-0


[Site "https://www.chess.com"]

[Event "Titled Tuesday Blitz January 03 Early 2023"]
[White "Al-Tarboush, Ward"]
[Black "Lakshmi C"]
[WhiteFideId "7601450"]
[BlackFideId "25035347"]
[WhiteElo "2256"]
[BlackElo "1928"]
[Result "1-0"]
[Round "02"]
[TimeControl "180+2"]
[Date "2023.01.03"]
[WhiteClock "0:01:21"]
[BlackClock "0:00:01"]

1. e4 {[%clk 0:02:41]}  c5 {[%clk 0:01:18]} 2. Nf3 {[%clk 0:02:37]}  Nc6 {[%clk 0:01:18]} 3. d4 {[%clk 0:02:37]}  cxd4 {[%clk 0:01:18]} 4. Nxd4 {[%clk 0:02:38]}  Nf6 {[%clk 0:01:18]} 5. Nc3 {[%clk 0:02:37]}  e5 {[%clk 0:01:18]} 6. Ndb5 {[%clk 0:02:37]}  d6 {[%clk 0:01:19]} 7. Bg5 {[%clk 0:02:37]}  a6 {[%clk 0:01:19]} 8. Na3 {[%clk 0:02:37]}  b5 {[%clk 0:01:19]} 9. Nd5 {[%clk 0:02:37]}  Be7 {[%clk 0:01:20]} 10. Bxf6 {[%clk 0:02:38]}  Bxf6 {[%clk 0:01:20]} 11. c3 {[%clk 0:02:37]}  Ne7 {[%clk 0:01:20]} 12. Nxf6+ {[%clk 0:02:37]}  gxf6 {[%clk 0:01:21]} 13. Nc2 {[%clk 0:02:36]}  d5 {[%clk 0:01:17]} 14. a4 {[%clk 0:02:35]}  bxa4 {[%clk 0:01:16]} 15. Ne3 {[%clk 0:02:26]}  Bb7 {[%clk 0:00:40]} 16. exd5 {[%clk 0:02:23]}  Nxd5 {[%clk 0:00:37]} 17. Qxa4+ {[%clk 0:02:22]}  Kf8 {[%clk 0:00:37]} 18. Rd1 {[%clk 0:02:20]}  Qd6 {[%clk 0:00:19]} 19. Qb3 {[%clk 0:02:13]}  Qb6 {[%clk 0:00:17]} 20. Qa3+ {[%clk 0:02:13]}  Ne7 {[%clk 0:00:16]} 21. Rd7 {[%clk 0:02:11]}  Re8 {[%clk 0:00:14]} 22. Nf5 {[%clk 0:02:09]}  Qe6 {[%clk 0:00:10]} 23. Nxe7 {[%clk 0:02:03]}  Qxd7 {[%clk 0:00:10]} 24. Nd5+ {[%clk 0:01:48]}  Kg7 {[%clk 0:00:09]} 25. Ne3 {[%clk 0:01:43]}  e4 {[%clk 0:00:06]} 26. Bc4 {[%clk 0:01:42]}  f5 {[%clk 0:00:05]} 27. O-O {[%clk 0:01:41]}  f4 {[%clk 0:00:05]} 28. Rd1 {[%clk 0:01:37]}  Qc8 {[%clk 0:00:05]} 29. Qa5 {[%clk 0:01:21]}  fxe3 {[%clk 0:00:01]} 30. Qg5+ {[%clk 0:01:21]}  Kf8 {[%clk 0:00:01]} 31. Qh6+ {[%clk 0:01:21]}  Ke7 {[%clk 0:00:01]} 32. Qd6# {[%clk 0:01:21]} 1-0


[Site "https://www.chess.com"]

[Event "Titled Tuesday Blitz January 03 Early 2023"]
[White "Hartikainen, Jarmo"]
[Black "Mortazavi, Ali"]
[WhiteFideId "503134"]
[BlackFideId "401323"]
[WhiteElo "2108"]
[BlackElo "2333"]
[Result "0-1"]
[Round "02"]
[TimeControl "180+2"]
[Date "2023.01.03"]
[WhiteClock "0:00:04"]
[BlackClock "0:00:22"]

1. e4 {[%clk 0:03:00]}  c6 {[%clk 0:02:59]} 2. d4 {[%clk 0:03:00]}  d5 {[%clk 0:03:00]} 3. Nc3 {[%clk 0:03:01]}  dxe4 {[%clk 0:03:01]} 4. Nxe4 {[%clk 0:03:02]}  Nf6 {[%clk 0:03:02]} 5. Nxf6+ {[%clk 0:03:02]}  exf6 {[%clk 0:03:02]} 6. Bf4 {[%clk 0:03:02]}  Bd6 {[%clk 0:03:03]} 7. Qf3 {[%clk 0:03:03]}  O-O {[%clk 0:02:53]} 8. Bd3 {[%clk 0:03:03]}  Qa5+ {[%clk 0:02:38]} 9. c3 {[%clk 0:03:00]}  Bxf4 {[%clk 0:02:33]} 10. Qxf4 {[%clk 0:02:59]}  Qb6 {[%clk 0:02:31]} 11. b3 {[%clk 0:02:35]}  c5 {[%clk 0:02:28]} 12. Ne2 {[%clk 0:02:28]}  Nc6 {[%clk 0:02:28]} 13. Rd1 {[%clk 0:01:46]}  cxd4 {[%clk 0:02:26]} 14. cxd4 {[%clk 0:01:46]}  Nb4 {[%clk 0:02:16]} 15. Bb1 {[%clk 0:01:44]}  Re8 {[%clk 0:02:16]} 16. Rd2 {[%clk 0:01:27]}  Bd7 {[%clk 0:01:57]} 17. h4 {[%clk 0:00:48]}  Rac8 {[%clk 0:01:36]} 18. O-O {[%clk 0:00:41]}  Bb5 {[%clk 0:01:33]} 19. Re1 {[%clk 0:00:40]}  g6 {[%clk 0:01:24]} 20. a3 {[%clk 0:00:26]}  Nd5 {[%clk 0:01:24]} 21. Qf3 {[%clk 0:00:26]}  Nc3 {[%clk 0:01:19]} 22. Bd3 {[%clk 0:00:18]}  Bxd3 {[%clk 0:01:12]} 23. Qxd3 {[%clk 0:00:17]}  Qxb3 {[%clk 0:01:12]} 24. Kh2 {[%clk 0:00:13]}  Qxa3 {[%clk 0:01:02]} 25. Rc1 {[%clk 0:00:09]}  Qd6+ {[%clk 0:00:59]} 26. g3 {[%clk 0:00:09]}  Nd5 {[%clk 0:00:47]} 27. Rxc8 {[%clk 0:00:09]}  Rxc8 {[%clk 0:00:48]} 28. Rc2 {[%clk 0:00:09]}  Re8 {[%clk 0:00:45]} 29. Ng1 {[%clk 0:00:08]}  Nb4 {[%clk 0:00:40]} 30. Qa3 {[%clk 0:00:05]}  Qxd4 {[%clk 0:00:40]} 31. Rb2 {[%clk 0:00:04]}  a5 {[%clk 0:00:35]} 32. Nf3 {[%clk 0:00:04]}  Qe4 {[%clk 0:00:30]} 33. Rd2 {[%clk 0:00:04]}  Kg7 {[%clk 0:00:27]} 34. Qxa5 {[%clk 0:00:04]}  Qxf3 {[%clk 0:00:22]} 35. Qxb4 {[%clk 0:00:04]}  Re1 {[%clk 0:00:22]} 0-1


[Site "https://www.chess.com"]